Cogmind - Beta 13 @@@ ROGUE MODE // 2024.04.02 @ 01:42:19 Player: Olafz Result: Destroyed by Y-45 Defender with Beam Rifle Performance ------------- Evolutions (2) 1000 Regions Visited (7) 1400 Robots Destroyed (54) 270 Value Destroyed (1632) 1632 Prototype IDs (24) 480 Alien Tech Used (0) 0 Bonus (258) 258 TOTAL SCORE: 5040 Bonus ------- High Alert Combat Kills 17 Aligned with FarCom 300 Friendly Fire -59 Cogmind --------- Core Integrity 0/550 Matter 9/300 Energy 280/280 System Corruption 0% Temperature Cool (27) Movement Core (150) Ox2 Location -8/Storage Parts ------- > --- POWER (2) -------- Heavy Ion Engine > --- PROPULSION (2) --- (None) > --- UTILITY (5) ------ (None) > --- WEAPON (2) ------- (None) > --- INVENTORY (5) ---- Heavy Ion Engine Heavy Ion Engine Aluminum Leg Heat Sink Peak State ------------ > --- POWER ------------ (None) > --- PROPULSION ------- Carbon-fiber Leg Carbon-fiber Leg > --- UTILITY ---------- Small Storage Unit Trap Reconfigurator Drone Bay Drone Bay Drone Bay > --- WEAPON ----------- Katana > --- INVENTORY -------- Aluminum Leg Heat Sink Assault Rifle [Rating: 34] Favorites ----------- Power Improved Ion Engine Engine Improved Ion Engine Propulsion Aluminum Leg Leg Aluminum Leg Utility Small Storage Unit Device Sensor Array Storage Small Storage Unit Protection Core Shielding Weapon Mini Grenade Launcher Ballistic Gun Light Assault Rifle Launcher Mini Grenade Launcher Slashing Weapon Katana Build | -11 -10 -9 -9 -9 -8 -8 -8 ------- Run | Yrd Mat Mat Min Exi Min Mat Sto Slots Evolved 4 | . . 2 . . . 2 . Power 1 | . . . . . . 1 . Propulsion . | . . . . . . . . Utility 3 | . . 2 . . . 1 . Weapon . | . . . . . . . . Parts Attached 42 | 6 2 13 1 1 4 . 15 Power 10 | 1 1 3 . . . . 5 Engine 10 | 1 1 3 . . . . 5 Core . | . . . . . . . . Reactor . | . . . . . . . . Propulsion 9 | 2 . 1 . . 4 . 2 Treads . | . . . . . . . . Leg 9 | 2 . 1 . . 4 . 2 Wheel . | . . . . . . . . Hover . | . . . . . . . . Flight . | . . . . . . . . Utility 10 | 1 . 4 1 1 . . 3 Device 6 | . . 1 1 1 . . 3 Storage 1 | 1 . . . . . . . Processor . | . . . . . . . . Hackware . | . . . . . . . . Protection 3 | . . 3 . . . . . Artifact . | . . . . . . . . Weapon 13 | 2 1 5 . . . . 5 Energy Gun . | . . . . . . . . Energy Cannon . | . . . . . . . . Ballistic Gun 5 | 2 . 3 . . . . . Ballistic Cannon . | . . . . . . . . Launcher 7 | . 1 2 . . . . 4 Special Weapon . | . . . . . . . . Impact Weapon . | . . . . . . . . Slashing Weapon 1 | . . . . . . . 1 Piercing Weapon . | . . . . . . . . Special Melee Weapon . | . . . . . . . . Unidentified Prototypes 2 | . . . . 1 . . 1 Parts Lost 22 | . . 6 . . 1 . 15 Power 3 | . . 2 . . . . 1 Propulsion 6 | . . 1 . . 1 . 4 Utility 5 | . . 1 . . . . 4 Weapon 8 | . . 2 . . . . 6 Highest Loss Streak 5 | . . 2 . . 1 . 5 To Critical Strikes . | . . . . . . . . Average Slot Usage (%) 87 | . 84 80 96 100 99 81 54 Engine 10 | . 14 9 11 11 11 9 6 Leg 20 | . 28 20 22 22 21 18 12 Device 15 | . . 5 18 22 22 18 13 Storage 10 | . 14 11 11 11 11 9 8 Protection 8 | . . 11 11 11 11 9 2 Ballistic Gun 3 | . 14 9 . . . . . Launcher 16 | . 12 11 22 22 22 18 6 Naked Turns 2 | . . . . . . . 2 Heaviest Build 28 | 11 14 18 17 17 17 17 28 Greatest Support 35 | 20 20 20 20 20 35 35 35 Greatest Overweight (x) 6 | . . 1 . . . . 6 Average Overweight (x) . | . . . . . . . . Largest Inventory Capacity 8 | 8 8 8 8 8 8 8 8 Average Capacity 7 | 6 8 8 8 8 8 8 7 Most Carried 8 | 1 3 6 7 4 7 7 8 Average Carried 4 | . 2 4 5 3 6 7 5 Final Capacity 8 | 8 8 8 8 8 8 8 5 Final Carried 7 | 1 3 6 3 4 7 7 4 Class Distribution -------------------- 67% | Mutant 28% | Skirmisher 3% | Scavenger-Mutant Dominant Class ---------------- Mutant | -10/Materials Mutant | -9/Materials Mutant | -9/Mines Mutant | -9/Exiles Skirmisher | -8/Mines Skirmisher | -8/Materials Mutant | -8/Storage Resources | -11 -10 -9 -9 -9 -8 -8 -8 ----------- Run | Yrd Mat Mat Min Exi Min Mat Sto Matter Collected 991 | 193 158 302 74 . 157 . 107 Remotely . | . . . . . . . . Salvage Created 1291 | 84 126 404 167 . 181 . 329 Parts 94 | 2 11 26 11 . 14 . 30 Haulers Intercepted . | . . . . . . . . Recyclers Shooed . | . . . . . . . . Parts Field Recycled . | . . . . . . . . Retrieved Matter . | . . . . . . . . Parts Self-Destructed . | . . . . . . . . Prevented . | . . . . . . . . Kills | -11 -10 -9 -9 -9 -8 -8 -8 ------- Run | Yrd Mat Mat Min Exi Min Mat Sto Combat Hostiles Destroyed 41 | . 4 10 6 . 8 . 13 Melee 2 | . . . . . . . 2 Guns 3 | . . 3 . . . . . AOE 36 | . 4 7 6 . 8 . 11 Classes Destroyed 11 | 1 2 5 1 . 1 . 1 Worker 3 | . . . . . . . 3 Builder 4 | . . 1 . . . . 3 Recycler 3 | 1 . 1 . . . . 1 Operator 2 | . 2 . . . . . . Watcher 1 | . . 1 . . . . . Swarmer 11 | . . 4 . . 3 . 4 Grunt 20 | . 4 2 5 . 3 . 6 Brawler 1 | . . 1 . . . . . Duelist 3 | . . . 1 . . . 2 Sentry 4 | . . 3 . . . . 1 Hunter 2 | . . . . . 2 . . Best Kill Streak 12 | 1 3 6 3 . 3 . 12 Combat Bots Only 6 | . 2 6 3 . 3 . 5 Max Kills in Single Turn 3 | 1 2 2 2 . 3 . 3 Gunslinging . | . . . . . . . . Exploded 3 | . 2 2 2 . 3 . 3 Melee 1 | . . . . . . . 1 Uniques/NPCs Destroyed . | . . . . . . . . Combat | -11 -10 -9 -9 -9 -8 -8 -8 -------- Run | Yrd Mat Mat Min Exi Min Mat Sto Hostile Shots Fired 214 | . 10 54 5 . 14 . 131 Missed 64 | . 2 16 2 . 4 . 40 Damage Taken 2731 | . 167 620 80 . 286 . 1578 Core 794 | . 22 89 28 . 94 . 561 Absorbed by Shields . | . . . . . . . . Redirected to Shielding 52 | . . 7 6 . 21 . 18 Core Remaining (%) 79 | 100 91 . . . 47 . . Volleys Fired 79 | 3 12 32 5 . 8 . 19 Largest 2 | 2 2 2 2 . 2 . 2 Hottest 66 | 40 50 60 60 . 60 . 66 Shots Fired 127 | 6 22 51 10 . 16 . 22 Gun 60 | 6 12 42 . . . . . Cannon . | . . . . . . . . Launcher 67 | . 10 9 10 . 16 . 22 Special . | . . . . . . . . Kinetic 60 | 6 12 42 . . . . . Thermal . | . . . . . . . . Explosive 67 | . 10 9 10 . 16 . 22 Electromagnetic . | . . . . . . . . Robot Hit Streak 8 | 2 7 8 4 . 5 . 4 Robot Miss Streak 3 | 2 1 3 1 . . . 2 Penetration Max . | . . . . . . . . Secondary Targets . | . . . . . . . . Shots Hit Robots 65 | 3 12 27 4 . 5 . 14 Core Hits 104 | 2 10 21 11 . 17 . 43 Critical Kills . | . . . . . . . . Critical Parts Destroyed . | . . . . . . . . Critical Strikes . | . . . . . . . . Melee Attacks 5 | . . . . . . . 5 Impact . | . . . . . . . . Slashing 5 | . . . . . . . 5 Piercing . | . . . . . . . . Sneak Attacks . | . . . . . . . . Combat Hostiles . | . . . . . . . . Follow-up Attacks . | . . . . . . . . Damage Inflicted 3881 | 33 373 759 521 . 632 . 1563 Guns 384 | 33 51 300 . . . . . Cannons . | . . . . . . . . Explosions 3422 | . 322 458 521 . 632 . 1489 Melee 64 | . . . . . . . 64 Ramming 11 | . . 1 . . . . 10 Kinetic 384 | 33 51 300 . . . . . Thermal 175 | . . 61 . . 114 . . Explosive 3247 | . 322 397 521 . 518 . 1489 Electromagnetic . | . . . . . . . . Impact . | . . . . . . . . Slashing 64 | . . . . . . . 64 Piercing . | . . . . . . . . Highest Corruption . | . . . . . . . . Average Corruption . | . . . . . . . . Corruption Purged . | . . . . . . . . Corruption Blocked . | . . . . . . . . Overload Shots . | . . . . . . . . Overflow Damage 120 | . . 45 . . 22 . 53 Projectiles . | . . . . . . . . Explosions 120 | . . 45 . . 22 . 53 Melee . | . . . . . . . . Knockbacks 1 | . . . . . . . 1 Impact 1 | . . . . . . . 1 Kinetic . | . . . . . . . . Secondary . | . . . . . . . . Self-Inflicted Damage 609 | . 59 148 48 . 104 . 250 Shots 20 | . 4 4 1 . 3 . 8 Rammed . | . . . . . . . . Targets Rammed 6 | . . 2 . . . . 4 Kicked 6 | . . 2 . . . . 4 Crushed . | . . . . . . . . Highest Temperature 79 | . 19 25 . . 21 . 79 Average Temperature 21 | . 9 7 . . 14 . 39 Received Heat Transfer 846 | . 60 165 18 . 54 . 549 Siege Activations . | . . . . . . . . Robots Corrupted . | . . . . . . . . Combat Hostiles . | . . . . . . . . Parts Fried . | . . . . . . . . Impact Corruptions . | . . . . . . . . Robots Melted . | . . . . . . . . Combat Hostiles . | . . . . . . . . Parts Melted . | . . . . . . . . Heat Transferred 150 | . . 50 . . 100 . . Parts Sabotaged . | . . . . . . . . Parts Stolen . | . . . . . . . . Parts Stripped . | . . . . . . . . Power Chain Reactions . | . . . . . . . . Alert | -11 -10 -9 -9 -9 -8 -8 -8 ------- Run | Yrd Mat Mat Min Exi Min Mat Sto Peak Influence 473 | 5 198 410 325 . 335 81 473 Initial 105 | . 3 83 105 . . 81 33 Average 185 | 2 74 308 235 . 141 81 170 Maximum Alert Level 2 | . . 2 1 . 1 . 2 Low Security (%) 61 | 100 100 11 14 . 91 100 76 Level 1 32 | . . 68 85 . 8 . 15 Level 2 5 | . . 19 . . . . 7 Level 3 . | . . . . . . . . Level 4 . | . . . . . . . . Level 5 . | . . . . . . . . High Security . | . . . . . . . . Max Security . | . . . . . . . . Squads Dispatched 4 | . 1 1 . . . . 2 Investigation 1 | . . . . . . . 1 Extermination . | . . . . . . . . Reinforcement 3 | . 1 1 . . . . 1 Assault . | . . . . . . . . Garrison . | . . . . . . . . Intercept . | . . . . . . . . Searches Triggered . | . . . . . . . . Construction Impeded 1 | . . . . . . . 1 Haulers Reinforced . | . . . . . . . . Active Scanning Responses . | . . . . . . . . Cargo Convoy Interrupts . | . . . . . . . . Stealth | -11 -10 -9 -9 -9 -8 -8 -8 --------- Run | Yrd Mat Mat Min Exi Min Mat Sto Distress Signals 1 | . . 1 . . . . . Communications Jammed . | . . . . . . . . Distress Signals . | . . . . . . . . Times Spotted 51 | . 5 17 6 . 8 . 15 Peak Tracking Total 8 | . 2 8 3 . 3 . 6 Tactical Retreats 1 | . . 1 . . . . . Traps | -11 -10 -9 -9 -9 -8 -8 -8 ------- Run | Yrd Mat Mat Min Exi Min Mat Sto Traps Triggered 3 | . . . . . . . 3 Indirectly . | . . . . . . . . Trap Hack Attempts . | . . . . . . . . Triggered . | . . . . . . . . Disarmed . | . . . . . . . . Reprogrammed . | . . . . . . . . Reused . | . . . . . . . . Traps Reconfigurated 1 | . . . . . . . 1 Traps Extracted . | . . . . . . . . Installed . | . . . . . . . . Triggered . | . . . . . . . . Machines | -11 -10 -9 -9 -9 -8 -8 -8 ---------- Run | Yrd Mat Mat Min Exi Min Mat Sto Machines Disabled 14 | . 1 2 1 . 7 . 3 Max in Single Turn 5 | . 1 1 1 . 5 . 1 Machines Repaired . | . . . . . . . . Machines Dismantled . | . . . . . . . . Machines Sabotaged . | . . . . . . . . Overloaded Fab Kills . | . . . . . . . . Hacking | -11 -10 -9 -9 -9 -8 -8 -8 --------- Run | Yrd Mat Mat Min Exi Min Mat Sto Machines Accessed 5 | . 1 . . 2 . . 2 Terminals 3 | . 1 . . . . . 2 Fabricators . | . . . . . . . . Repair Stations . | . . . . . . . . Recycling Units . | . . . . . . . . Scanalyzers . | . . . . . . . . Garrison Access . | . . . . . . . . Total Hacks 13 | . 2 . . 8 . . 3 Successful 10 | . 1 . . 8 . . 1 Failed 3 | . 1 . . . . . 2 Catastrophic 1 | . . . . . . . 1 Database Lockouts . | . . . . . . . . Manual 1 | . . . . 1 . . . Terminals 5 | . 2 . . . . . 3 Fabricators . | . . . . . . . . Repair Stations . | . . . . . . . . Recycling Units . | . . . . . . . . Scanalyzers . | . . . . . . . . Garrison Access . | . . . . . . . . Terminal Hacks 10 | . 1 . . 8 . . 1 Record 7 | . . . . 7 . . . Open Door 1 | . . . . . . . 1 Hauler Manifests 1 | . 1 . . . . . . Derelict Proto ID Bank 1 | . . . . 1 . . . Fabricator Hacks . | . . . . . . . . Repair Station Hacks . | . . . . . . . . Recycling Unit Hacks . | . . . . . . . . Scanalyzer . | . . . . . . . . Garrison Access Hacks . | . . . . . . . . Unauthorized Hacks . | . . . . . . . . Terminals . | . . . . . . . . Fabricators . | . . . . . . . . Repair Stations . | . . . . . . . . Recycling Units . | . . . . . . . . Scanalyzers . | . . . . . . . . Garrison Access . | . . . . . . . . Data Cores Recovered 1 | . 1 . . . . . . Used 1 | . 1 . . . . . . Hacking Detections 2 | . 1 . . . . . 1 Full Trace Events 1 | . . . . . . . 1 Feedback Events . | . . . . . . . . Feedback Blocked . | . . . . . . . . Robot Schematics Acquired . | . . . . . . . . Robots Built . | . . . . . . . . Authchips . | . . . . . . . . Time . | . . . . . . . . Total Robot Build Rating . | . . . . . . . . Part Schematics Acquired . | . . . . . . . . Parts Built . | . . . . . . . . Authchips . | . . . . . . . . Time . | . . . . . . . . Total Part Build Rating . | . . . . . . . . Parts Repaired . | . . . . . . . . Time . | . . . . . . . . Parts Recycled . | . . . . . . . . Recycled Matter . | . . . . . . . . Retrieved Matter . | . . . . . . . . Retrieved Components . | . . . . . . . . Parts Scanalyzed . | . . . . . . . . Part Schematics Acquired . | . . . . . . . . Parts Damaged . | . . . . . . . . Bothacking | -11 -10 -9 -9 -9 -8 -8 -8 ------------ Run | Yrd Mat Mat Min Exi Min Mat Sto Used RIF Installer . | . . . . . . . . Robots Hacked . | . . . . . . . . Non-combat . | . . . . . . . . Combat . | . . . . . . . . Robot Hacks Applied . | . . . . . . . . Relay Couplers Released . | . . . . . . . . Fabnet Peak Effective % . | . . . . . . . . Robots Rewired . | . . . . . . . . Allies Hacked . | . . . . . . . . Hacks Repelled . | . . . . . . . . Allies | -11 -10 -9 -9 -9 -8 -8 -8 -------- Run | Yrd Mat Mat Min Exi Min Mat Sto Total Allies 2 | . . . 2 . . . . Largest Group 2 | . . . 2 2 . . . Highest-Rated Group 42 | . . . 42 42 . . . Highest-Rated Ally 31 | . . . 31 31 . . . Total Orders . | . . . . . . . . Ally Attacks 5 | . . . 5 . . . . Total Damage 84 | . . . 84 . . . . Kills . | . . . . . . . . Allies Corrupted . | . . . . . . . . Allies Melted . | . . . . . . . . Intel | -11 -10 -9 -9 -9 -8 -8 -8 ------- Run | Yrd Mat Mat Min Exi Min Mat Sto Robot Analysis Total . | . . . . . . . . Derelict Logs Recovered . | . . . . . . . . Drone Launches 16 | . . . . . . . 16 Drone Recoveries . | . . . . . . . . Exploration | -11 -10 -9 -9 -9 -8 -8 -8 ------------- Run | Yrd Mat Mat Min Exi Min Mat Sto Turns Passed 2614 | 74 220 496 269 503 669 20 363 Spaces Moved 1859 | 49 155 323 197 418 490 16 211 Core 39 | 4 . . . . . . 35 Treads . | . . . . . . . . Legs 1820 | 45 155 323 197 418 490 16 176 Wheels . | . . . . . . . . Hover . | . . . . . . . . Flight . | . . . . . . . . Fastest Speed 50 | 50 120 120 120 120 120 130 50 Average Speed 123 | 114 120 122 120 120 130 130 127 Slowest Speed 350 | 120 120 190 120 120 140 130 350 Overloaded Moves . | . . . . . . . . Propulsion Burnouts . | . . . . . . . . Robots Hopped . | . . . . . . . . Cave-ins Triggered . | . . . . . . . . Exploration Rate (%) 35 | 4 20 28 51 72 79 2 24 Regions Visited 7 Branch Regions 4 Pre-discovered Areas . | . . . . . . . . Known Exits Taken . | . . . . . . . . Unknown Exits Taken 7 | 1 1 1 1 1 1 1 . Scrap Searched 2 | . . . 1 . 1 . . Spaces Dug 79 | . 15 . . . 62 . 2 Terrain Destroyed 544 | . 63 94 91 . 139 . 157 Melee 2 | . . . . . . . 2 Projectile . | . . . . . . . . AOE 542 | . 63 94 91 . 139 . 155 Terrain Rammed . | . . . . . . . . Walls Destroyed . | . . . . . . . . Machines Disabled . | . . . . . . . . Actions | -11 -10 -9 -9 -9 -8 -8 -8 --------- Run | Yrd Mat Mat Min Exi Min Mat Sto Total 2030 | 58 169 371 221 420 503 15 273 Wait 17 | . . . 14 . 2 . 1 Move 1852 | 48 154 322 196 417 489 15 211 Hop . | . . . . . . . . Pick Up 6 | 1 . . 1 1 . . 3 Fast Attach 28 | 6 1 8 1 . 1 . 11 Attach 7 | . . 2 . 1 . . 4 Detach 9 | . 1 2 . 1 . . 5 Swap 7 | . 1 3 . . 3 . . Drop 8 | . . . 4 . . . 4 Fire 79 | 3 12 32 5 . 8 . 19 Melee 5 | . . . . . . . 5 Ram . | . . . . . . . . Kick 6 | . . 2 . . . . 4 Crush . | . . . . . . . . Escape Stasis . | . . . . . . . . Rewire 1 | . . . . . . . 1 Trap . | . . . . . . . . Miscellaneous 5 | . . . . . . . 5 Route ------- -11/Scrapyard -10/Materials -9/Materials -9/Mines -9/Exiles (discovered 2 exits: [*Min x2]) -8/Mines -8/Materials -8/Storage History --------- Turn | Location | Event 23 | -11/Scrapyard | Discovered new exit (range 16) 75 | -11/Scrapyard | Entered Materials 262 | -10/Materials | Discovered new exit (range 12) 295 | -10/Materials | Entered another Materials area 295 | -9/Materials | Evolved 2 slots: Utility x2 303 | -9/Materials | Build established: Mutant 775 | -9/Materials | Discovered new exit (range 12) 791 | -9/Materials | Entered Mines 1003 | -9/Mines | Deemed a non-threat by the Exiles lab entrance 1005 | -9/Mines | Discovered new exit (range 5) 1060 | -9/Mines | Entered Exiles 1060 | -9/Exiles | Accompanied by 2 allies 1078 | -9/Exiles | Discovered new exit (range 15) 1090 | -9/Exiles | Led the pair of lost Derelicts to a safe place 1143 | -9/Exiles | Met 8R-AWN 1171 | -9/Exiles | Met EX-HEX 1237 | -9/Exiles | Met EX-DEC 1317 | -9/Exiles | Met EX-BIN 1344 | -9/Exiles | Aligned with FarCom system 1345 | -9/Exiles | Given EX-Vault access code 1390 | -9/Exiles | Opened EX-Vault 1404 | -9/Exiles | Found Prototype Device 1405 | -9/Exiles | Identified Trap Reconfigurator 1442 | -9/Exiles | Exiles lab attacked by MAIN.C 1549 | -9/Exiles | Discovered new exit (range 14) 1563 | -9/Exiles | Left Exiles lab with Trap Reconfigurator 1563 | -9/Exiles | Entered Mines 1871 | -8/Mines | Build established: Skirmisher 2215 | -8/Mines | Core integrity fell below 50% 2224 | -8/Mines | Discovered new exit (range 5) 2232 | -8/Mines | Entered Materials 2232 | -8/Materials | Evolved 2 slots: Power x1, Utility x1 2232 | -8/Materials | Discovered new exit (range 7) 2252 | -8/Materials | Entered Storage 2341 | -8/Storage | Lost 4 parts (1p1n1u1w) 2389 | -8/Storage | Lost 3 parts (1n1u1w) 2541 | -8/Storage | Core integrity fell below 50% 2577 | -8/Storage | Lost 3 parts (1n2w) 2604 | -8/Storage | Core integrity fell below 20% 2615 | -8/Storage | Destroyed by Y-45 Defender with Beam Rifle Last Messages --------------- 02583_ K-01 Serf collects debris. 02583_ U-05 Engineer lays Concrete. 02584_ The unstable cave ceiling collapses. 02584_ U-05 Engineer lays Concrete. 02585_ Sml. Storage Unit destroyed. 02585_ Destroyed Sml. Storage Unit. 02585_ Trap Reconfigurator destroyed. 02585_ Destroyed Trap Reconfigurator. 02585_ Transfer Shaft disabled. 02585_ U-05 Engineer lays Concrete. 02587_ The unstable cave ceiling collapses. 02587_ Critical hit (Burn: +37). 02587_ U-05 Engineer builds a Wall. 02591_ K-01 Serf collects debris. 02593_ Rocket Launcher destroyed. 02594_ Carbon-fiber Leg destroyed. 02596_ The unstable cave ceiling collapses. 02606_ U-05 Engineer lays Concrete. 02612_ K-01 Serf collects debris. 02615_ Critical hit (Burn: +37). Map ----- +----------------------------------------------------+ | ????????????###### ############?????????????????? | | ????????????################## ##############????? | | ????????????## ^^ #????? | | ???????????### ^ #????? | | ???????????# # #????? | | ???????????# # #####################+######????? | | ???????????### ### # #######????## #????????? | | ????????????## # ## #?????????#T #????????? | | ????????????## # # !##?????????##"""#????????? | | ????????????## # " #????????????????????????? | | ?????######### + #!!!!#????????????????????????? | | ?????# *** # ########????????????????????????? | | ?????# + T#??????????????????????????????? | | ?????# # #######?????????????????????????? | | ###########T## ###"""####??????????????????????? | | # ##????### # #"T"##T###????????????????????? | | # ######## ###??????????????????? | | ! #??????????????????? | | # # * [ ##?????????????????? | | [* #?????????????????? | | # [ = Y #?????????????????? | | [ # ## ####+#????????????? | | # %# ## # s #????????????? | | # % g ^= #????????????? | | ### ### ## # g### #= Y#### #????????????? | | ??###?###### # @ #????????????????? | | ????????##### # #????????????????? | | ????????????# # """""" #????????????????? | | ????????????# # ?????? +????????????????? | | ????????????# # ??????? #????????????????? | | ????????????###+#######?????????#????????????????? | | ?????????????? % ????????????????????????????????? | | ?????????????""""????????????????????????????????? | | ?????????????????????????????????????????????????? | | ?????????????????????????????????????????????????? | | ?????????????????????????????????????????????????? | | ?????????????????????????????????????????????????? | | ???????????????????w?????????????????????????????? | | ?????????????????????????????????????????????????? | | ???????????????????????Y?????????????????????????? | | ?????????????????????????????????????????????????? | | ?????????????????????????????????????????????????? | | ?????????????????????????????????????????????????? | | ?????????????????????????????????????????????????? | | ?????????????????????????????????????????????????? | | ?????????????????????????????????????????????????? | | ?????????????????????????????????????????????????? | | ?????????????????????????????????????????????????? | | ?????????????????????????????????????????????????? | | ?????????????????????????????????????????????????? | +----------------------------------------------------+ Best States ------------- Heat Dissipation 38 Energy Generation 23 Energy Capacity 460 Matter Stores 300 Matter Capacity 300 Sight Range 16 Robot Scan Range 14 Terrain Scan Density 10 Armor Coverage 150 Core Shielding 20 Evasion (%) 55 Item Schematics ----------------- None Robot Schematics ------------------ None Fabricated ------------ Nothing Alien Tech Used ----------------- None Achievements -------------- Release The Drones! Remodeling Challenges ------------ None Game ------ Seed WeaponsCatalystTendrils Manual? 0 Play Time 00:31:58 Cumulative 11.8 hours Start 2024.04.02 @ 00:57:16 End 2024.04.02 @ 01:42:19 Sessions 1 Manual Loads 0 Difficulty Rogue Special Mode None Game No. 36 Rogue 34 Adventurer 2 Explorer 0 Win Type - Total 0 Types 0/0/0/0/0/0/0/0/0 Lore% 16 Gallery% 16 Achievement% 17 Wizard Run 0 Options --------- Layout 0 ASCII 0 Keyboard 1 Movement Arrows Keybinds 0 Fullscreen 2 Font 18/SmallcapsGlow Map View 76x50 Zoom Use 0% Tactical HUD 1 Map Filters NONE Filters NONE Steam 1 RUN: 376c3fd7-7624-4f82-9353-d53506442db2